Workbook

Sheet Classsificació
A1: COPA BOTIFARRA SANT MAURE'20
A2: 18 Gener 2020
L4: CLASSIFICACIÓ | P4: RONDA 1 | S4: RONDA 2 | V4: RONDA 3 | Y4: RONDA 4 | AB4: RONDA 5 | AE4: FINAL
B5: Equip | C5: Jugador | D5: Partits | L5: Premi | M5: Diferència | N5: Favor | O5: Contra | P5: Premi | Q5: Favor | R5: Contra | S5: Premi | T5: Favor | U5: Contra | V5: Premi | W5: Favor | X5: Contra | Y5: Premi | Z5: Favor | AA5: Contra | AB5: Premi | AC5: Favor | AD5: Contra | AE5: Premi | AF5: Favor | AG5: Contra | AT5: RONDA 1 | AV5: RONDA 2 | AX5: RONDA 3 | AZ5: RONDA 4 | BB5: RONDA 5 | BE5: RONDA 1 | BG5: RONDA 2 | BI5: RONDA 3 | BK5: RONDA 4 | BM5: RONDA 5
A6: 1 | B6: 22 | C6: Goretti Salvadó | J6: =RAND() -> 0.5847356799 | K6: =+N6+J6 -> 243.5847357 | L6: =+P6+S6+V6+Y6+AB6+AE6 -> 16 | M6: =+N6-O6 -> 144 | N6: =+Q6+T6+W6+Z6+AC6+AF6 -> 243 | O6: =+R6+U6+X6+AA6+AD6+AG6 -> 99 | P6: 3 | Q6: 31 | R6: 0 | S6: 1 | T6: 24 | U6: 31 | V6: 3 | W6: 41 | X6: 22 | Y6: 3 | Z6: 31 | AA6: 25 | AB6: 3 | AC6: 41 | AD6: 2 | AE6: 3 | AF6: 75 | AG6: 19 | AK6: 2 | AL6: =+AK6 -> 2 | AM6: =+AK8 -> 13 | AT6: 15 | AU6: 1 | AV6: 8 | AW6: 22 | AX6: 2 | AY6: 13 | AZ6: 2 | BA6: 15 | BB6: 13 | BC6: 4 | BE6: =+AT6*100+AU6 -> 1501 | BF6: =+AU6*100+AT6 -> 115 | BG6: =+AV6*100+AW6 -> 822 | BH6: =+AW6*100+AV6 -> 2208 | BI6: =+AX6*100+AY6 -> 213 | BJ6: =+AY6*100+AX6 -> 1302 | BK6: =+AZ6*100+BA6 -> 215 | BL6: =+BA6*100+AZ6 -> 1502 | BM6: =+BB6*100+BC6 -> 1304 | BN6: =+BC6*100+BB6 -> 413
A7: =1+A6 -> 2 | B7: 15 | C7: Carles Rodon | J7: 0.4799343311 | K7: 268.4799343 | L7: 14 | M7: 144 | N7: 268 | O7: 124 | P7: 1 | Q7: 15 | R7: 20 | S7: 3 | T7: 67 | U7: 32 | V7: 3 | W7: 41 | X7: 22 | Y7: 1 | Z7: 25 | AA7: 31 | AB7: 3 | AC7: 45 | AD7: 0 | AE7: 3 | AF7: 75 | AG7: 19 | AK7: 22 | AL7: =+AK7 -> 22 | AM7: =+AK9 -> 15 | AT7: 21 | AU7: 23 | AV7: 13 | AW7: 19 | AX7: 11 | AY7: 23 | AZ7: 13 | BA7: 22 | BB7: 22 | BC7: 2 | BE7: =+AT7*100+AU7 -> 2123 | BF7: =+AU7*100+AT7 -> 2321 | BG7: =+AV7*100+AW7 -> 1319 | BH7: =+AW7*100+AV7 -> 1913 | BI7: =+AX7*100+AY7 -> 1123 | BJ7: =+AY7*100+AX7 -> 2311 | BK7: =+AZ7*100+BA7 -> 1322 | BL7: =+BA7*100+AZ7 -> 2213 | BM7: =+BB7*100+BC7 -> 2202 | BN7: =+BC7*100+BB7 -> 222
A8: =1+A7 -> 3 | B8: 2 | C8: Isidor Farré | J8: 0.6268776225 | K8: 220.6268776 | L8: 13 | M8: 72 | N8: 220 | O8: 148 | P8: 3 | Q8: 44 | R8: 15 | S8: 3 | T8: 30 | U8: 8 | V8: 3 | W8: 61 | X8: 17 | Y8: 1 | Z8: 25 | AA8: 31 | AB8: 3 | AC8: 41 | AD8: 2 | AE8: 0 | AF8: 19 | AG8: 75 | AK8: 13 | AL8: =+AK10 -> 11 | AM8: =+AK12 -> 8 | AT8: 12 | AU8: 6 | AV8: 2 | AW8: 11 | AX8: 19 | AY8: 8 | AZ8: 19 | BA8: 6 | BB8: 23 | BC8: 18 | BE8: 1206 | BF8: 612 | BG8: =+AV8*100+AW8 -> 211 | BH8: =+AW8*100+AV8 -> 1102 | BI8: =+AX8*100+AY8 -> 1908 | BJ8: =+AY8*100+AX8 -> 819 | BK8: =+AZ8*100+BA8 -> 1906 | BL8: =+BA8*100+AZ8 -> 619 | BM8: =+BB8*100+BC8 -> 2318 | BN8: =+BC8*100+BB8 -> 1823
A9: 4 | B9: 13 | C9: Jordi Marzá | J9: 0.01978033214 | K9: 184.0197803 | L9: 12 | M9: 2 | N9: 184 | O9: 182 | P9: 3 | Q9: 40 | R9: 0 | S9: 3 | T9: 31 | U9: 24 | V9: 3 | W9: 61 | X9: 17 | Y9: 3 | Z9: 31 | AA9: 25 | AB9: 0 | AC9: 2 | AD9: 41 | AE9: 0 | AF9: 19 | AG9: 75 | AK9: 15 | AL9: =+AK11 -> 1 | AM9: =+AK13 -> 6 | AT9: 4 | AU9: 11 | AV9: 17 | AW9: 4 | AX9: 15 | AY9: 22 | AZ9: 4 | BA9: 23 | BB9: 11 | BC9: 15 | BE9: =+AT9*100+AU9 -> 411 | BF9: =+AU9*100+AT9 -> 1104 | BG9: =+AV9*100+AW9 -> 1704 | BH9: =+AW9*100+AV9 -> 417 | BI9: =+AX9*100+AY9 -> 1522 | BJ9: =+AY9*100+AX9 -> 2215 | BK9: =+AZ9*100+BA9 -> 423 | BL9: =+BA9*100+AZ9 -> 2304 | BM9: =+BB9*100+BC9 -> 1115 | BN9: =+BC9*100+BB9 -> 1511
A10: 5 | B10: 11 | C10: Núria Roca | J10: 0.1266012997 | K10: 260.1266013 | L10: 14 | M10: 86 | N10: 260 | O10: 174 | P10: 3 | Q10: 41 | R10: 22 | S10: 3 | T10: 30 | U10: 8 | V10: 0 | W10: 17 | X10: 61 | Y10: 2 | Z10: 19 | AA10: 19 | AB10: 3 | AC10: 45 | AD10: 0 | AE10: 3 | AF10: 108 | AG10: 64 | AK10: 11 | AL10: =+AK14 -> 4 | AM10: =+AK16 -> 23 | AT10: 2 | AU10: 17 | AV10: 21 | AW10: 1 | AX10: 17 | AY10: 20 | AZ10: 11 | BA10: 21 | BB10: 21 | BC10: 17 | BE10: =+AT10*100+AU10 -> 217 | BF10: =+AU10*100+AT10 -> 1702 | BG10: =+AV10*100+AW10 -> 2101 | BH10: =+AW10*100+AV10 -> 121 | BI10: =+AX10*100+AY10 -> 1720 | BJ10: =+AY10*100+AX10 -> 2017 | BK10: =+AZ10*100+BA10 -> 1121 | BL10: =+BA10*100+AZ10 -> 2111 | BM10: =+BB10*100+BC10 -> 2117 | BN10: =+BC10*100+BB10 -> 1721
A11: 6 | B11: 8 | C11: Josep Mª Grau | J11: 0.3452797994 | K11: 244.3452798 | L11: 12 | M11: 89 | N11: 244 | O11: 155 | P11: 3 | Q11: 40 | R11: 0 | S11: 1 | T11: 24 | U11: 31 | V11: 0 | W11: 22 | X11: 41 | Y11: 2 | Z11: 19 | AA11: 19 | AB11: 3 | AC11: 31 | AD11: 0 | AE11: 3 | AF11: 108 | AG11: 64 | AK11: 1 | AL11: =+AK15 -> 19 | AM11: =+AK17 -> 18 | AT11: 14 | AU11: 18 | AV11: 23 | AW11: 15 | AX11: 4 | AY11: 6 | AZ11: 18 | BA11: 8 | BB11: 1 | BC11: 16 | BE11: =+AT11*100+AU11 -> 1418 | BF11: =+AU11*100+AT11 -> 1814 | BG11: 2315 | BH11: 1523 | BI11: 406 | BJ11: 604 | BK11: 1808 | BL11: 818 | BM11: 116 | BN11: 1601
A12: 7 | B12: 1 | C12: MªAngels Estévez | J12: 0.6991983961 | K12: 429.6991984 | L12: 10 | M12: 221 | N12: 429 | O12: 208 | P12: 1 | Q12: 15 | R12: 20 | S12: 0 | T12: 32 | U12: 67 | V12: 3 | W12: 31 | X12: 0 | Y12: 3 | Z12: 27 | AA12: 12 | AB12: 3 | AC12: 260 | AD12: 1 | AE12: 0 | AF12: 64 | AG12: 108 | AK12: 8 | AL12: =+AK18 -> 21 | AM12: =+AK20 -> 20 | AT12: 13 | AU12: 8 | AV12: 12 | AW12: 14 | AX12: 16 | AY12: 12 | AZ12: 14 | BA12: 16 | BB12: 12 | BC12: 20 | BE12: 1308 | BF12: 813 | BG12: 1214 | BH12: 1412 | BI12: 1612 | BJ12: 1216 | BK12: 1416 | BL12: 1614 | BM12: 1220 | BN12: 2012
A13: 8 | B13: 6 | C13: Manel Pérez | J13: 0.9686116365 | K13: 201.9686116 | L13: 9 | M13: -33 | N13: 201 | O13: 234 | P13: 0 | Q13: 22 | R13: 41 | S13: 3 | T13: 22 | U13: 16 | V13: 3 | W13: 57 | X13: 36 | Y13: 0 | Z13: 5 | AA13: 33 | AB13: 3 | AC13: 31 | AD13: 0 | AE13: 0 | AF13: 64 | AG13: 108 | AK13: 6 | AL13: =+AK19 -> 14 | AM13: =+AK21 -> 16 | AT13: 20 | AU13: 16 | AV13: 6 | AW13: 18 | AX13: 18 | AY13: 21 | AZ13: 1 | BA13: 20 | BB13: 14 | BC13: 19 | BE13: 2016 | BF13: 1620 | BG13: 618 | BH13: 1806 | BI13: 1821 | BJ13: 2118 | BK13: 120 | BL13: 2001 | BM13: 1419 | BN13: 1914
A14: 9 | B14: 19 | C14: Marc Vidal | J14: 0.7934749834 | K14: 249.793475 | L14: 12 | M14: 125 | N14: 249 | O14: 124 | P14: 3 | Q14: 31 | R14: 0 | S14: 3 | T14: 31 | U14: 24 | V14: 0 | W14: 22 | X14: 41 | Y14: 0 | Z14: 5 | AA14: 33 | AB14: 3 | AC14: 14 | AD14: 10 | AE14: 3 | AF14: 146 | AG14: 16 | AK14: 4 | AL14: =+AK22 -> 17 | AM14: =+AK23 -> 12 | BE14: 0 | BF14: 0 | BG14: 0 | BH14: 0 | BI14: 0 | BJ14: 0 | BK14: 0 | BL14: 0 | BM14: 0 | BN14: 0
A15: 10 | B15: 18 | C15: Rosa Carles | J15: 0.1160732193 | K15: 221.1160732 | L15: 11 | M15: 75 | N15: 221 | O15: 146 | P15: 0 | Q15: 15 | R15: 44 | S15: 3 | T15: 22 | U15: 16 | V15: 3 | W15: 19 | X15: 6 | Y15: 2 | Z15: 19 | AA15: 19 | AB15: 0 | AC15: 0 | AD15: 45 | AE15: 3 | AF15: 146 | AG15: 16 | AK15: 19 | BE15: 0 | BF15: 0 | BG15: 0 | BH15: 0 | BI15: 0 | BJ15: 0 | BK15: 0 | BL15: 0 | BM15: 0 | BN15: 0
A16: 11 | B16: 4 | C16: Enric Vives | J16: 0.8558313465 | K16: 157.8558313 | L16: 9 | M16: -123 | N16: 157 | O16: 280 | P16: 3 | Q16: 41 | R16: 22 | S16: 0 | T16: 8 | U16: 30 | V16: 3 | W16: 57 | X16: 36 | Y16: 3 | Z16: 33 | AA16: 5 | AB16: 0 | AC16: 2 | AD16: 41 | AE16: 0 | AF16: 16 | AG16: 146 | AK16: 23 | AL16: 2 | AM16: 13 | BE16: 0 | BF16: 0 | BG16: 0 | BH16: 0 | BI16: 0 | BJ16: 0 | BK16: 0 | BL16: 0 | BM16: 0 | BN16: 0
A17: 12 | B17: 23 | C17: Lucía Rebón | J17: 0.02254161647 | K17: 153.0225416 | L17: 9 | M17: -151 | N17: 153 | O17: 304 | P17: 3 | Q17: 20 | R17: 15 | S17: 3 | T17: 67 | U17: 32 | V17: 0 | W17: 17 | X17: 61 | Y17: 3 | Z17: 33 | AA17: 5 | AB17: 0 | AC17: 0 | AD17: 45 | AE17: 0 | AF17: 16 | AG17: 146 | AK17: 18 | AL17: 22 | AM17: 15 | AO17: =+AL16 -> 2 | AP17: =+AM16 -> 13 | AQ17: =+AL17 -> 22 | AR17: =+AM17 -> 15 | BE17: 0 | BF17: 0 | BG17: 0 | BH17: 0 | BI17: 0 | BJ17: 0 | BK17: 0 | BL17: 0 | BM17: 0 | BN17: 0
A18: 13 | B18: 21 | C18: Oscar Boixet | J18: 0.96406355 | K18: 190.9640635 | L18: 11 | M18: -188 | N18: 190 | O18: 378 | P18: 3 | Q18: 20 | R18: 15 | S18: 0 | T18: 32 | U18: 67 | V18: 3 | W18: 19 | X18: 6 | Y18: 2 | Z18: 19 | AA18: 19 | AB18: 0 | AC18: 1 | AD18: 260 | AE18: 3 | AF18: 99 | AG18: 11 | AK18: 21 | AL18: 11 | AM18: 8 | AO18: =+AL18 -> 11 | AP18: =+AM18 -> 8 | AQ18: =+AL19 -> 1 | AR18: =+AM19 -> 6 | AT18: 21 | AU18: 6 | AV18: 21 | AW18: 6 | BE18: 2106 | BF18: 621 | BG18: 2106 | BH18: 621 | BI18: 0 | BJ18: 0 | BK18: 0 | BL18: 0 | BM18: 0 | BN18: 0
A19: 14 | B19: 20 | C19: Jordi Montiel | J19: 0.8601343526 | K19: 203.8601344 | L19: 10 | M19: 69 | N19: 203 | O19: 134 | P19: 0 | Q19: 0 | R19: 40 | S19: 3 | T19: 31 | U19: 0 | V19: 0 | W19: 36 | X19: 57 | Y19: 3 | Z19: 27 | AA19: 12 | AB19: 1 | AC19: 10 | AD19: 14 | AE19: 3 | AF19: 99 | AG19: 11 | AK19: 14 | AL19: 1 | AM19: 6 | AO19: =+AL20 -> 4 | AP19: =+AM20 -> 23 | AQ19: =+AL21 -> 19 | AR19: =+AM21 -> 18 | AT19: 23 | AU19: 30 | AV19: 23 | AW19: 30 | BE19: 2330 | BF19: 3023 | BG19: 2330 | BH19: 3023 | BI19: 0 | BJ19: 0 | BK19: 0 | BL19: 0 | BM19: 0 | BN19: 0
A20: 15 | B20: 14 | C20: Jaume Llobet | J20: 0.2230244369 | K20: 99.22302444 | L20: 7 | M20: -103 | N20: 99 | O20: 202 | P20: 0 | Q20: 15 | R20: 44 | S20: 1 | T20: 16 | U20: 22 | V20: 3 | W20: 31 | X20: 0 | Y20: 0 | Z20: 12 | AA20: 27 | AB20: 3 | AC20: 14 | AD20: 10 | AE20: 0 | AF20: 11 | AG20: 99 | AK20: 20 | AL20: 4 | AM20: 23 | AO20: =+AL22 -> 21 | AP20: =+AM22 -> 20 | AQ20: =+AL23 -> 14 | AR20: =+AM23 -> 16 | BE20: 0 | BF20: 0 | BG20: 0 | BH20: 0 | BI20: 0 | BJ20: 0 | BK20: 0 | BL20: 0 | BM20: 0 | BN20: 0
A21: 16 | B21: 16 | C21: Mayjo Nevado | J21: 0.01582451594 | K21: 320.0158245 | L21: 6 | M21: 134 | N21: 320 | O21: 186 | P21: 0 | Q21: 0 | R21: 40 | S21: 3 | T21: 31 | U21: 0 | V21: 0 | W21: 6 | X21: 19 | Y21: 0 | Z21: 12 | AA21: 27 | AB21: 3 | AC21: 260 | AD21: 1 | AE21: 0 | AF21: 11 | AG21: 99 | AK21: 16 | AL21: 19 | AM21: 18 | BE21: 0 | BF21: 0 | BG21: 0 | BH21: 0 | BI21: 0 | BJ21: 0 | BK21: 0 | BL21: 0 | BM21: 0 | BN21: 0
A22: 17 | B22: 17 | C22: Manuel Díaz | J22: 0.5593837769 | K22: 120.5593838 | L22: 6 | M22: -242 | N22: 120 | O22: 362 | P22: 3 | Q22: 44 | R22: 15 | S22: 0 | T22: 8 | U22: 30 | V22: 0 | W22: 36 | X22: 57 | Y22: 3 | Z22: 31 | AA22: 0 | AB22: 0 | AC22: 1 | AD22: 260 | AK22: 17 | AL22: 21 | AM22: 20 | BE22: 0 | BF22: 0 | BG22: 0 | BH22: 0 | BI22: 0 | BJ22: 0 | BK22: 0 | BL22: 0 | BM22: 0 | BN22: 0
A23: 18 | B23: 12 | C23: Josep Marquès | J23: 0.7422123033 | K23: 85.7422123 | L23: 5 | M23: -11 | N23: 85 | O23: 96 | P23: 0 | Q23: 22 | R23: 41 | S23: 1 | T23: 16 | U23: 22 | V23: 0 | W23: 6 | X23: 19 | Y23: 3 | Z23: 31 | AA23: 0 | AB23: 1 | AC23: 10 | AD23: 14 | AK23: 12 | AL23: 14 | AM23: 16 | BE23: 0 | BF23: 0 | BG23: 0 | BH23: 0 | BI23: 0 | BJ23: 0 | BK23: 0 | BL23: 0 | BM23: 0 | BN23: 0
A24: 19 | B24: 35 | C24: Joan Sendra | J24: 0.8718907559 | K24: 0.8718907559 | L24: -21 | M24: 0 | N24: 0 | O24: 0 | AK24: 35 | AL24: 4 | AM24: 28
A25: 20 | B25: 25 | C25: Pere Segura | J25: 0.8482173901 | K25: 0.8482173901 | L25: -21 | M25: 0 | N25: 0 | O25: 0 | AK25: 25
A26: 21 | B26: 7 | J26: 0.9445068866 | K26: 0.9445068866 | L26: -21 | M26: 0 | N26: 0 | O26: 0 | AK26: 7
A27: 22 | B27: 5 | J27: 0.7183432177 | K27: 0.7183432177 | L27: -21 | M27: 0 | N27: 0 | O27: 0 | AK27: 5
A28: 23 | B28: 9 | J28: 0.9115277553 | K28: 0.9115277553 | L28: -21 | M28: 0 | N28: 0 | O28: 0 | AK28: 9
A29: 24 | B29: 7 | D29: 8 | J29: 0.7851403452 | K29: 0.7851403452 | L29: -22 | M29: 0 | N29: 0 | O29: 0 | AK29: 7
A30: 25 | B30: 5 | D30: 20 | J30: 0.4546224406 | K30: 0.4546224406 | L30: -22 | M30: 0 | N30: 0 | O30: 0 | AK30: 5
A31: 26 | B31: 9 | J31: 0.9898582223 | K31: 0.9898582223 | L31: -22 | M31: 0 | N31: 0 | O31: 0 | AK31: 9
A32: 27 | J32: 0.860939112 | K32: 0.860939112 | L32: -22 | M32: 0 | N32: 0 | O32: 0
A33: 28 | D33: 7 | J33: 0.0499681247 | K33: 0.0499681247 | L33: -22 | M33: 0 | N33: 0 | O33: 0
A34: 29 | J34: 0.9541298649 | K34: 0.9541298649 | L34: -22 | M34: 0 | N34: 0 | O34: 0
A35: 30 | J35: 0.9414016277 | K35: 0.9414016277 | L35: -22 | M35: 0 | N35: 0 | O35: 0
A36: 31 | D36: 5 | J36: 0.5444501204 | K36: 0.5444501204 | L36: -22 | M36: 0 | N36: 0 | O36: 0
A37: 32 | D37: 20 | J37: 0.8309568724 | K37: 0.8309568724 | L37: -22 | M37: 0 | N37: 0 | O37: 0
A38: 33 | D38: 20 | J38: 0.08448510709 | K38: 0.08448510709 | L38: -22 | M38: 0 | N38: 0 | O38: 0
A39: 34 | J39: 0.7647999411 | K39: 0.7647999411 | L39: -22 | M39: 0 | N39: 0 | O39: 0
A40: 35 | D40: 1 | J40: 0.02147687004 | K40: 0.02147687004 | L40: -22 | M40: 0 | N40: 0 | O40: 0
C41: Descansa | L41: 31-0
M42: =SUM(M6:M40) -> 310 | Q42: =+Q8+Q9+Q10+Q17 -> 145 | R42: =+R8+R9+R10+R17 -> 52 | S42: =SUM(S6:S25) -> 34 | T42: =+T7+T8+T9+T13 -> 150 | U42: =+U7+U8+U9+U13 -> 80 | V42: =SUM(V6:V25) -> 30 | W42: =+W6+W8+W13+W18 -> 178 | X42: =+X6+X8+X13+X18 -> 81 | Y42: =SUM(Y6:Y25) -> 34 | Z42: =+Z6+Z10+Z12+Z16 -> 110 | AA42: =+AA6+AA10+AA12+AA16 -> 61 | AB42: =SUM(AB6:AB25) -> 32 | AC42: =+AC6+AC7+AC12+AC14 -> 360 | AD42: =+AD6+AD7+AD12+AD14 -> 13 | AE42: =SUM(AE6:AE25) -> 24 | AF42: =+AF6+AF10+AF14+AF18 -> 428 | AG42: =+AG6+AG10+AG14+AG18 -> 110 | AH42: =+Q42+T42+W42+Z42+AC42+AF42 -> 1371 | AI42: =+R42+U42+X42+AA42+AD42+AG42 -> 397
Q43: =+Q6+Q7+Q8+Q9 -> 130 | R43: =+R6+R7+R8+R9 -> 35 | T43: =+T6+T7+T10+T11 -> 145 | U43: =+U6+U7+U10+U11 -> 102 | W43: =+W6+W8+W10+W12 -> 150 | X43: =+X6+X8+X10+X12 -> 100 | Z43: =+Z6+Z7+Z12+Z13 -> 88 | AA43: =+AA6+AA7+AA12+AA13 -> 101 | AC43: =+AC6+AC7+AC11+AC13 -> 148 | AD43: =+AD6+AD7+AD11+AD13 -> 2 | AF43: =+AF6+AF10+AF14+AF18 -> 428 | AG43: =+AG6+AG10+AG14+AG18 -> 110 | AH43: =+Q43+T43+W43+Z43+AC43+AF43 -> 1089 | AI43: =+R43+U43+X43+AA43+AD43+AG43 -> 450
R44: =(Q43-R43)/4 -> 23.75 | U44: =(T43-U43)/4 -> 10.75 | X44: =(W43-X43)/4 -> 12.5 | AA44: =(Z43-AA43)/4 -> -3.25 | AD44: =(AC43-AD43)/4 -> 36.5 | AG44: =(AF43-AG43)/4 -> 79.5 | AI44: =+AH43-AI43 -> 639
AG45: Resultat mitjà | AH45: =+AH43/24 -> 45.375 | AI45: =+AI43/24 -> 18.75
AH46: Diferència mitjana | AI46: =+AI44/24 -> 26.625
L48: CLASSIFICACIÓ | AE48: RONDA 6
C49: Jugador | E49: R 1 | F49: R 2 | G49: R 3 | H49: R 4 | I49: R 5 | J49: R 6 | L49: Premi | M49: Diferència | N49: Favor | O49: Contra
A50: =RANK(D50,D$50:D$69,0) -> 1 | D50: =+L50*1000+M50 -> 0 | L50: =+P50+S50+V50+Y50+AB50+AE50 -> 0 | M50: =+N50-O50 -> 0 | N50: =+Q50+T50+W50+Z50+AC50+AF50 -> 0 | O50: =+R50+U50+X50+AA50+AD50+AG50 -> 0
A51: 1 | D51: =+L51*1000+M51 -> 0 | L51: 0 | M51: 0 | N51: 0 | O51: 0
A52: 1 | D52: 0 | L52: 0 | M52: 0 | N52: 0 | O52: 0
A53: 1 | D53: 0 | L53: 0 | M53: 0 | N53: 0 | O53: 0
A54: 1 | D54: 0 | L54: 0 | M54: 0 | N54: 0 | O54: 0
A55: 1 | D55: 0 | L55: 0 | M55: 0 | N55: 0 | O55: 0
A56: 1 | D56: 0 | L56: 0 | M56: 0 | N56: 0 | O56: 0
A57: 1 | D57: 0 | L57: 0 | M57: 0 | N57: 0 | O57: 0
A58: 1 | D58: 0 | L58: 0 | M58: 0 | N58: 0 | O58: 0
A59: 1 | D59: 0 | L59: 0 | M59: 0 | N59: 0 | O59: 0
A60: 1 | D60: 0 | L60: 0 | M60: 0 | N60: 0 | O60: 0
A61: 1 | D61: 0 | L61: 0 | M61: 0 | N61: 0 | O61: 0
A62: 1 | D62: 0 | L62: 0 | M62: 0 | N62: 0 | O62: 0
A63: 1 | D63: 0 | L63: 0 | M63: 0 | N63: 0 | O63: 0
A64: 1 | D64: 0 | L64: 0 | M64: 0 | N64: 0 | O64: 0
A65: 1 | D65: 0 | L65: 0 | M65: 0 | N65: 0 | O65: 0
A66: 1 | D66: 0 | L66: 0 | M66: 0 | N66: 0 | O66: 0
A67: 1 | D67: 0 | L67: 0 | M67: 0 | N67: 0 | O67: 0
A68: 1 | D68: =+L68*1000+M68 -> 0 | L68: =+P68+S68+V68+Y68+AB68+AE68 -> 0 | M68: =+N68-O68 -> 0 | N68: =+Q68+T68+W68+Z68+AC68+AF68 -> 0 | O68: =+R68+U68+X68+AA68+AD68+AG68 -> 0
A69: 1 | D69: =+L69*1000+M69 -> 0 | L69: =+P69+S69+V69+Y69+AB69+AE69 -> 0 | M69: =+N69-O69 -> 0 | N69: =+Q69+T69+W69+Z69+AC69+AF69 -> 0 | O69: =+R69+U69+X69+AA69+AD69+AG69 -> 0

Sheet Resultats
A1: PARTIDES ST MAURE'20
A3: Taula | B3: Ronda | C3: EQUIPS | G3: Local | H3: Visitant | I3: Resultat
A4: 1 | B4: 1 | C4: 15 | D4: 1 | E4: 21 | F4: 23 | I4: 15-20
A5: 2 | B5: 1 | C5: 12 | D5: 6 | E5: 4 | F5: 11 | I5: 22-41
A6: 3 | B6: 1 | C6: 2 | D6: 17 | E6: 14 | F6: 18 | I6: 44-15
A7: 4 | B7: 1 | C7: 13 | D7: 8 | E7: 20 | F7: 16 | I7: 40-0
A8: 5 | B8: 1
A9: 6 | B9: 1
A10: 1 | B10: 2 | C10: 8 | D10: 22 | E10: 13 | F10: 19 | I10: 24-31
A11: 2 | B11: 2 | C11: 2 | D11: 11 | E11: 17 | F11: 4 | I11: 30-8
A12: 3 | B12: 2 | C12: 21 | D12: 1 | E12: 23 | F12: 15 | I12: 32-67
A13: 4 | B13: 2 | C13: 12 | D13: 14 | E13: 6 | F13: 18 | I13: 16-22
A14: 5 | B14: 2
A15: 6 | B15: 2
A16: 1 | B16: 3 | C16: 2 | D16: 13 | E16: 11 | F16: 23 | I16: 61-17
A17: 2 | B17: 3 | C17: 19 | D17: 8 | E17: 15 | F17: 22 | I17: 22-41
A18: 3 | B18: 3 | C18: 17 | D18: 20 | E18: 4 | F18: 6 | I18: 36-57
A19: 4 | B19: 3 | C19: 16 | D19: 12 | E19: 18 | F19: 21 | I19: 6-19
A20: 5 | B20: 3
A21: 6 | B21: 3
A22: 1 | B22: 4 | C22: 2 | D22: 15 | E22: 13 | F22: 22 | I22: 25-31
A23: 2 | B23: 4 | C23: 19 | D23: 6 | E23: 4 | F23: 23 | I23: 5-33
A24: 3 | B24: 4 | C24: 11 | D24: 21 | E24: 18 | F24: 8 | I24: 19-19
A25: 4 | B25: 4 | C25: 14 | D25: 16 | E25: 1 | F25: 20 | I25: 12-27
A26: 5 | B26: 4
A27: 6 | B27: 4
A28: 1 | B28: 5 | C28: 13 | D28: 4 | E28: 22 | F28: 2 | I28: 2-41
A29: 2 | B29: 5 | C29: 23 | D29: 18 | E29: 11 | F29: 15 | I29: 0-45
A30: 3 | B30: 5 | C30: 21 | D30: 17 | E30: 1 | F30: 16 | I30: 1-260
A31: 4 | B31: 5 | C31: 12 | D31: 20 | E31: 14 | F31: 19 | I31: 10-14
A32: 5 | B32: 5 | XFD32: =SUM(A32:XFC32) -> 10
A33: 6 | B33: 5 | XFD33: =SUM(A33:XFC33) -> 11
A34: FINAL | C34: 2 | D34: 13 | E34: 22 | F34: 15
A35: 2 | B35: 5è-8è | C35: 11 | D35: 8 | E35: 1 | F35: 6
A36: 3 | B36: 9è-12è | C36: 4 | D36: 23 | E36: 19 | F36: 18
A37: 4 | B37: 13è-16è | C37: 21 | D37: 20 | E37: 14 | F37: 16
A38: 5 | B38: 17è-20è

Sheet Inscripcions
A2: SOPAR BOTIFARRA | E2: CAMPIONAT BOTIFARRA
B5: PARTICIPANTS | F5: PARTICIPANTS | J5: PARTICIPANTS
A7: 1 | E7: 1 | F7: MªAngels Estévez | I7: 17
A8: 2 | E8: =1+E7 -> 2 | F8: Isidor Farré | I8: =+I7+1 -> 18
A9: 3 | E9: =1+E8 -> 3 | F9: Joan Sendra | I9: =+I8+1 -> 19
A10: 4 | E10: 4 | F10: Enric Vives | I10: 20
A11: 5 | E11: 5 | F11: Montse Nogué | I11: 21
A12: 6 | E12: 6 | F12: Manel Pérez | I12: 22
A13: 7 | E13: 7 | F13: Josefina Bacardit | I13: 23
A14: 8 | E14: 8 | F14: Josep Mª Grau | I14: 24
A15: 9 | E15: 9 | F15: Satur Cid | I15: 25
A16: 10 | E16: 10 | F16: Pere Segura | I16: 26
A17: 11 | E17: 11 | F17: Núria Roca | I17: 27
A18: 12 | E18: 12 | F18: Josep Marquès | I18: 28
A19: 13 | E19: 13 | F19: Jordi Marzá | I19: 29
A20: 14 | E20: 14 | F20: Jaume Llobet | I20: 30
A21: 15 | E21: 15 | F21: Carles Rodon | I21: 31
A22: 16 | E22: 16 | F22: Mayjo Nevado | I22: 32

Sheet Taules
A1: TAULES BOTIFARRA'20
A3: Taula | B3: Ronda | C3: EQUIPS | D3: Local | E3: Visitant
